[Event "Open Nuevo Centro. Jornada 2"]
[Site "Chess.com"]
[Date "2020.06.26"]
[Round "3"]
[White "Valero Artagoitia, Sara"]
[Black "Perrot, Fabien "]
[Result "0-1"]
[WhiteElo "533"]
[BlackElo "1001"]
[TimeControl "180+2"]
[EndTime "11:02:32 PDT"]
[Termination "Victoria de InspiredMinds por jaque mate"]

1. e4 {[%clk 0:03:01.9]} 1... e5 {[%clk 0:02:58.9]} 2. Nf3 {[%clk 0:03:00.5]}
2... Nc6 {[%clk 0:02:54.9]} 3. Nc3 {[%clk 0:02:59]} 3... Nf6 {[%clk 0:02:54.7]}
4. Bc4 {[%clk 0:02:57.1]} 4... Be7 {[%clk 0:02:54.4]} 5. O-O {[%clk 0:02:55.4]}
5... O-O {[%clk 0:02:55.3]} 6. d3 {[%clk 0:02:49.7]} 6... h6 {[%clk 0:02:54.5]}
7. a3 {[%clk 0:02:48.1]} 7... d6 {[%clk 0:02:50.2]} 8. h3 {[%clk 0:02:46.4]}
8... b6 {[%clk 0:02:39.1]} 9. Be3 {[%clk 0:02:37]} 9... a6 {[%clk 0:02:37.4]}
10. Bd5 {[%clk 0:02:32.4]} 10... Nxd5 {[%clk 0:02:23.4]} 11. Nxd5 {[%clk
0:02:28.4]} 11... Be6 {[%clk 0:02:12.1]} 12. Nxe7+ {[%clk 0:02:00]} 12... Nxe7
{[%clk 0:02:14]} 13. b4 {[%clk 0:01:55.3]} 13... Rb8 {[%clk 0:02:02.2]} 14. c4
{[%clk 0:01:52.1]} 14... Qc8 {[%clk 0:01:46.6]} 15. c5 {[%clk 0:01:44.6]} 15...
d5 {[%clk 0:01:22.7]} 16. Nxe5 {[%clk 0:01:30.2]} 16... dxe4 {[%clk 0:01:09.9]}
17. dxe4 {[%clk 0:01:25.4]} 17... Rd8 {[%clk 0:01:10.7]} 18. Qc2 {[%clk
0:01:13.2]} 18... b5 {[%clk 0:01:07.9]} 19. a4 {[%clk 0:00:59.5]} 19... f6
{[%clk 0:01:04.1]} 20. Nd3 {[%clk 0:00:42.9]} 20... Bc4 {[%clk 0:01:00.7]} 21.
Nf4 {[%clk 0:00:28.2]} 21... Bxf1 {[%clk 0:00:52]} 22. Kxf1 {[%clk 0:00:22.9]}
22... Nc6 {[%clk 0:00:38.9]} 23. axb5 {[%clk 0:00:19]} 23... axb5 {[%clk
0:00:34.7]} 24. Ra3 {[%clk 0:00:13.7]} 24... Nxb4 {[%clk 0:00:30]} 25. Qb3+
{[%clk 0:00:13.1]} 25... Kh8 {[%clk 0:00:21.5]} 26. Qc3 {[%clk 0:00:11.1]} 26...
Nc6 {[%clk 0:00:17.9]} 27. Qb3 {[%clk 0:00:09.5]} 27... Ne5 {[%clk 0:00:16.5]}
28. Ne6 {[%clk 0:00:09.2]} 28... b4 {[%clk 0:00:13.9]} 29. Ra4 {[%clk
0:00:08.6]} 29... Rd3 {[%clk 0:00:09.7]} 30. Qd5 {[%clk 0:00:08.4]} 30... Rxd5
{[%clk 0:00:09.6]} 31. Ra3 {[%clk 0:00:05.7]} 31... Rd1+ {[%clk 0:00:08.8]} 32.
Ke2 {[%clk 0:00:05]} 32... Rd7 {[%clk 0:00:08.3]} 33. Ke1 {[%clk 0:00:05.4]}
33... Re7 {[%clk 0:00:07.4]} 34. Kf1 {[%clk 0:00:06.1]} 34... Rxe6 {[%clk
0:00:08.2]} 35. f3 {[%clk 0:00:06.8]} 35... Qd7 {[%clk 0:00:09.7]} 36. Kf2
{[%clk 0:00:07.6]} 36... Nf7 {[%clk 0:00:10.6]} 37. g3 {[%clk 0:00:08.5]} 37...
Kg8 {[%clk 0:00:10.4]} 38. g4 {[%clk 0:00:09.3]} 38... Qc8 {[%clk 0:00:11.3]}
39. h4 {[%clk 0:00:10.1]} 39... Ra8 {[%clk 0:00:12.6]} 40. h5 {[%clk 0:00:10.3]}
40... Rxa3 {[%clk 0:00:12.4]} 41. f4 {[%clk 0:00:10.8]} 41... Ra2+ {[%clk
0:00:12.1]} 42. Bd2 {[%clk 0:00:08]} 42... Rxe4 {[%clk 0:00:11.8]} 43. Kf3
{[%clk 0:00:07.8]} 43... Qe6 {[%clk 0:00:10.4]} 44. Kg3 {[%clk 0:00:07.9]} 44...
Rxd2 {[%clk 0:00:10.4]} 45. Kh4 {[%clk 0:00:08.3]} 45... Rh2+ {[%clk 0:00:08.7]}
46. Kg3 {[%clk 0:00:07.4]} 46... Rhe2 {[%clk 0:00:08.1]} 47. Kh3 {[%clk
0:00:06.4]} 47... R2e3+ {[%clk 0:00:08]} 48. Kh4 {[%clk 0:00:07]} 48... Re1
{[%clk 0:00:07.2]} 49. g5 {[%clk 0:00:06.7]} 49... Rxf4+ {[%clk 0:00:07.5]} 50.
Kg3 {[%clk 0:00:06.1]} 50... Qe3+ {[%clk 0:00:06.1]} 51. Kg2 {[%clk 0:00:06.3]}
51... Rf2# {[%clk 0:00:06.8]} 0

[Event "Open Nuevo Centro. Jornada 2"]
[Site "Chess.com"]
[Date "2020.06.26"]
[Round "3"]
[White "Gracia Calvo, Andrés"]
[Black "Yatseta Fernandez, Marc Kazymyr"]
[Result "1/2-1/2"]
[WhiteElo "1815"]
[BlackElo "1457"]
[TimeControl "180+2"]
[EndTime "11:02:33 PDT"]
[Termination "Tablas por repeticiÃ³n de movimientos"]

1. d4 {[%clk 0:03:00.5]} 1... Nf6 {[%clk 0:03:00.3]} 2. Nf3 {[%clk 0:03:01.4]}
2... d5 {[%clk 0:03:00.5]} 3. Bf4 {[%clk 0:03:02.6]} 3... Bf5 {[%clk 0:03:00.5]}
4. e3 {[%clk 0:03:03.5]} 4... e6 {[%clk 0:03:00.2]} 5. Bd3 {[%clk 0:03:04.5]}
5... Bg6 {[%clk 0:02:59]} 6. Nbd2 {[%clk 0:03:04.8]} 6... Nc6 {[%clk 0:02:59.1]}
7. Ne5 {[%clk 0:03:05.5]} 7... Bxd3 {[%clk 0:02:49.7]} 8. cxd3 {[%clk
0:03:05.6]} 8... Bd6 {[%clk 0:02:44.9]} 9. Ndf3 {[%clk 0:03:03.3]} 9... O-O
{[%clk 0:02:42.5]} 10. O-O {[%clk 0:03:03.4]} 10... Nh5 {[%clk 0:02:42.6]} 11.
Bg3 {[%clk 0:03:00.1]} 11... Nxg3 {[%clk 0:02:41.9]} 12. hxg3 {[%clk 0:03:00.7]}
12... f6 {[%clk 0:02:40.2]} 13. Nxc6 {[%clk 0:02:57.8]} 13... bxc6 {[%clk
0:02:40.4]} 14. e4 {[%clk 0:02:56.7]} 14... Rb8 {[%clk 0:02:39.6]} 15. b3 {[%clk
0:02:56.8]} 15... Qd7 {[%clk 0:02:34.5]} 16. Qc2 {[%clk 0:02:56.5]} 16... e5
{[%clk 0:02:12.8]} 17. Rac1 {[%clk 0:02:46.9]} 17... Rbc8 {[%clk 0:02:11]} 18.
Qxc6 {[%clk 0:02:44.8]} 18... Qxc6 {[%clk 0:02:09.9]} 19. Rxc6 {[%clk
0:02:44.9]} 19... dxe4 {[%clk 0:02:06.5]} 20. dxe4 {[%clk 0:02:44.9]} 20... exd4
{[%clk 0:02:07.1]} 21. Nxd4 {[%clk 0:02:44.8]} 21... Be5 {[%clk 0:01:59.8]} 22.
Nf5 {[%clk 0:02:41.2]} 22... Rfe8 {[%clk 0:01:48.9]} 23. Rfc1 {[%clk 0:02:36.1]}
23... g6 {[%clk 0:01:47.9]} 24. Ne3 {[%clk 0:02:32.2]} 24... Red8 {[%clk
0:01:43.5]} 25. Nd5 {[%clk 0:02:23.3]} 25... Kf7 {[%clk 0:01:31.1]} 26. Kf1
{[%clk 0:02:10.3]} 26... Rd7 {[%clk 0:01:17.8]} 27. Ke2 {[%clk 0:02:07.5]} 27...
f5 {[%clk 0:01:16.6]} 28. f3 {[%clk 0:01:52.7]} 28... Bxg3 {[%clk 0:01:16.1]}
29. Rf6+ {[%clk 0:01:37.8]} 29... Kg7 {[%clk 0:01:11.8]} 30. Rfc6 {[%clk
0:01:28.2]} 30... fxe4 {[%clk 0:00:54]} 31. fxe4 {[%clk 0:01:27]} 31... Rf8
{[%clk 0:00:51.9]} 32. Rf1 {[%clk 0:01:21]} 32... Rxf1 {[%clk 0:00:41]} 33. Kxf1
{[%clk 0:01:21.3]} 33... h5 {[%clk 0:00:35.3]} 34. Ke2 {[%clk 0:01:16]} 34...
Rf7 {[%clk 0:00:34.6]} 35. a4 {[%clk 0:01:03.1]} 35... Rf2+ {[%clk 0:00:33.4]}
36. Ke3 {[%clk 0:01:03]} 36... h4 {[%clk 0:00:25.3]} 37. Nxc7 {[%clk 0:01:00.5]}
37... Rxg2 {[%clk 0:00:25.7]} 38. Ne6+ {[%clk 0:00:58.5]} 38... Kh6 {[%clk
0:00:25.6]} 39. Kf3 {[%clk 0:00:47.6]} 39... Rf2+ {[%clk 0:00:24.6]} 40. Kg4
{[%clk 0:00:47.7]} 40... Rb2 {[%clk 0:00:21.2]} 41. Nf8 {[%clk 0:00:42.2]} 41...
Kg7 {[%clk 0:00:18.8]} 42. Nxg6 {[%clk 0:00:41.6]} 42... Rxb3 {[%clk 0:00:19.5]}
43. Nxh4 {[%clk 0:00:40.6]} 43... Bxh4 {[%clk 0:00:19.1]} 44. Kxh4 {[%clk
0:00:41.1]} 44... Rb4 {[%clk 0:00:20.1]} 45. Rc7+ {[%clk 0:00:39.9]} 45... Kf6
{[%clk 0:00:21.3]} 46. Kg3 {[%clk 0:00:39.8]} 46... Rxe4 {[%clk 0:00:21.5]} 47.
Rxa7 {[%clk 0:00:40.4]} 47... Ke6 {[%clk 0:00:21.7]} 48. Kf3 {[%clk 0:00:40.1]}
48... Rh4 {[%clk 0:00:22]} 49. Ke3 {[%clk 0:00:40.1]} 49... Kd6 {[%clk
0:00:22.6]} 50. Kd3 {[%clk 0:00:41.2]} 50... Kc6 {[%clk 0:00:24]} 51. Kc3 {[%clk
0:00:42.2]} 51... Kb6 {[%clk 0:00:25.3]} 52. Ra8 {[%clk 0:00:43.3]} 52... Rh5
{[%clk 0:00:23.5]} 53. Kb4 {[%clk 0:00:40.1]} 53... Kb7 {[%clk 0:00:21.3]} 54.
Rf8 {[%clk 0:00:37.1]} 54... Rh4+ {[%clk 0:00:21.8]} 55. Kb5 {[%clk 0:00:37.1]}
55... Rh5+ {[%clk 0:00:22.3]} 56. Kb4 {[%clk 0:00:34.7]} 56... Rh4+ {[%clk
0:00:23.3]} 57. Kb5 {[%clk 0:00:33.6]} 57... Rh5+ {[%clk 0:00:24]} 58. Kc4
{[%clk 0:00:34.3]} 58... Rh4+ {[%clk 0:00:24.9]} 59. Kb3 {[%clk 0:00:33.4]}
59... Rh3+ {[%clk 0:00:25.3]} 60. Kc4 {[%clk 0:00:32.9]} 60... Rh4+ {[%clk
0:00:26.1]} 61. Kb3 {[%clk 0:00:33.5]} 61... Rh3+ {[%clk 0:00:26.8]} 62. Kb4
{[%clk 0:00:33.7]} 62... Rh4+ {[%clk 0:00:28.1]} 1/2-1

[Event "Open Nuevo Centro. Jornada 2"]
[Site "Chess.com"]
[Date "2020.06.26"]
[Round "3"]
[White "Aymerich Rosell, Pablo"]
[Black "Donate Peris, Jose Manuel"]
[Result "1-0"]
[WhiteElo "1985"]
[BlackElo "1599"]
[TimeControl "180+2"]
[EndTime "11:03:05 PDT"]
[Termination "Victoria de jasikevic por abandono"]

1. e4 {[%clk 0:02:42]} 1... e6 {[%clk 0:02:59.1]} 2. d4 {[%clk 0:02:40.5]} 2...
d5 {[%clk 0:02:58.8]} 3. Nd2 {[%clk 0:02:41]} 3... c5 {[%clk 0:02:57.4]} 4. exd5
{[%clk 0:02:39.4]} 4... cxd4 {[%clk 0:02:55.5]} 5. dxe6 {[%clk 0:02:35.9]} 5...
Bxe6 {[%clk 0:02:55.5]} 6. Ngf3 {[%clk 0:02:30.8]} 6... Nc6 {[%clk 0:02:52]} 7.
Bb5 {[%clk 0:02:22]} 7... Qb6 {[%clk 0:02:48.4]} 8. Qe2 {[%clk 0:02:17.3]} 8...
Bc5 {[%clk 0:02:39.6]} 9. O-O {[%clk 0:02:11.9]} 9... Ne7 {[%clk 0:02:38]} 10.
Ng5 {[%clk 0:02:09.6]} 10... Bd5 {[%clk 0:02:21.9]} 11. Bc4 {[%clk 0:01:56.2]}
11... O-O {[%clk 0:02:11.3]} 12. Qh5 {[%clk 0:01:42.5]} 12... h6 {[%clk
0:02:02.7]} 13. Bxd5 {[%clk 0:01:35.1]} 13... Nxd5 {[%clk 0:02:00.1]} 14. Nge4
{[%clk 0:01:26]} 14... Rad8 {[%clk 0:01:46.3]} 15. Nc4 {[%clk 0:01:25.6]} 15...
Qc7 {[%clk 0:01:40.8]} 16. Nxc5 {[%clk 0:01:24.3]} 16... Ncb4 {[%clk 0:01:26.6]}
17. Nb3 {[%clk 0:00:25.9]} 17... Qxc4 {[%clk 0:01:26.4]} 18. Bxh6 {[%clk
0:00:20.2]} 18... Nf6 {[%clk 0:01:20.5]} 19. Qg5 {[%clk 0:00:20]} 19... Ne8
{[%clk 0:01:13.4]} 20. Qxd8 {[%clk 0:00:18.3]} 20... gxh6 {[%clk 0:01:13.1]} 21.
Qxd4 {[%clk 0:00:18.5]} 21... Qxd4 {[%clk 0:01:01.3]} 22. Nxd4 {[%clk
0:00:19.3]} 22... Nd6 {[%clk 0:00:59.8]} 23. c3 {[%clk 0:00:19.9]} 23... Nc6
{[%clk 0:00:57.6]} 24. Nxc6 {[%clk 0:00:20.3]} 24... bxc6 {[%clk 0:00:57.8]} 25.
Rad1 {[%clk 0:00:21.3]} 25... Nb5 {[%clk 0:00:55.6]} 26. a4 {[%clk 0:00:20.7]}
26... Nc7 {[%clk 0:00:54.2]} 27. Rd7 {[%clk 0:00:21.2]} 27... Ne6 {[%clk
0:00:54.4]} 28. Rxa7 {[%clk 0:00:21.7]} 28... Rb8 {[%clk 0:00:54.7]} 29. b4
{[%clk 0:00:21.8]} 29... Nf4 {[%clk 0:00:53.4]} 30. g3 {[%clk 0:00:16.2]} 30...
Ne2+ {[%clk 0:00:53.7]} 31. Kg2 {[%clk 0:00:17.3]} 31... Nxc3 {[%clk 0:00:54.2]}
32. Rc1 {[%clk 0:00:17.2]} 32... Nd5 {[%clk 0:00:52.1]} 33. Rxc6 {[%clk
0:00:14.7]} 33... Nxb4 {[%clk 0:00:49.4]} 34. Rcc7 {[%clk 0:00:14.5]} 34... Rf8
{[%clk 0:00:49.9]} 35. Rab7 {[%clk 0:00:13.4]} 35... Nd5 {[%clk 0:00:50.1]} 36.
Rd7 {[%clk 0:00:13.1]} 36... Nf6 {[%clk 0:00:49.4]} 37. Rd3 {[%clk 0:00:10.5]}
37... Ne4 {[%clk 0:00:49.2]} 38. a5 {[%clk 0:00:10.1]} 38... Nc5 {[%clk
0:00:49.8]} 39. Rdd7 {[%clk 0:00:10.3]} 39... Nxb7 {[%clk 0:00:49.6]} 40. Rxb7
{[%clk 0:00:11.2]} 40... Ra8 {[%clk 0:00:50.2]} 41. Rb5 {[%clk 0:00:11.6]} 41...
Kg7 {[%clk 0:00:48.6]} 42. Kf3 {[%clk 0:00:12.5]} 42... Ra6 {[%clk 0:00:49]} 43.
Ke4 {[%clk 0:00:13.2]} 43... f6 {[%clk 0:00:47.8]} 44. f4 {[%clk 0:00:14]} 44...
Kg6 {[%clk 0:00:48.1]} 45. g4 {[%clk 0:00:15.2]} 45... Kg7 {[%clk 0:00:46.4]}
46. h4 {[%clk 0:00:16]} 46... Re6+ {[%clk 0:00:46.3]} 47. Kf5 {[%clk 0:00:15.9]}
47... Ra6 {[%clk 0:00:45.4]} 48. Rb7+ {[%clk 0:00:15.6]} 48... Kf8 {[%clk
0:00:44]} 49. h5 {[%clk 0:00:14]} 49... Rxa5+ {[%clk 0:00:43.8]} 50. Kxf6 {[%clk
0:00:15]} 50... Kg8 {[%clk 0:00:40.3]} 51. Kg6 {[%clk 0:00:14]} 51... Ra6+
{[%clk 0:00:37.9]} 52. Kf5 {[%clk 0:00:14.9]} 52... Kf8 {[%clk 0:00:37.9]} 53.
g5 {[%clk 0:00:15]} 53... hxg5 {[%clk 0:00:37.5]} 54. Kxg5 {[%clk 0:00:14.1]}
54... Kg8 {[%clk 0:00:36.2]} 55. f5 {[%clk 0:00:15.1]} 55... Kf8 {[%clk
0:00:36.9]} 56. f6 {[%clk 0:00:16]} 56... Kg8 {[%clk 0:00:37.7]} 57. Kg6 {[%clk
0:00:16.7]} 57... Ra8 {[%clk 0:00:31.1]} 58. Rg7+ {[%clk 0:00:15]} 58... Kh8
{[%clk 0:00:30.3]} 59. Rh7+ {[%clk 0:00:16]} 59... Kg8 {[%clk 0:00:30.1]} 60.
f7+ {[%clk 0:00:17.1]} 60... Kf8 {[%clk 0:00:30.7]} 61. Rh8+ {[%clk 0:00:18.2]}
61... Ke7 {[%clk 0:00:31.5]} 62. Rxa8 {[%clk 0:00:18.5]} 1

[Event "Open Nuevo Centro. Jornada 2"]
[Site "Chess.com"]
[Date "2020.06.26"]
[Round "3"]
[White "Hassomal Daswani, Birjkumar"]
[Black "Beneyto de Ramon, Guillermo"]
[Result "1/2-1/2"]
[WhiteElo "1840"]
[BlackElo "1517"]
[TimeControl "180+2"]
[EndTime "11:03:46 PDT"]
[Termination "Partida en tablas por material insuficiente"]

1. e4 {[%clk 0:03:01.9]} 1... Nf6 {[%clk 0:03:00.8]} 2. Nc3 {[%clk 0:03:00.9]}
2... e5 {[%clk 0:03:01.9]} 3. Nf3 {[%clk 0:03:00.5]} 3... Nc6 {[%clk 0:03:03.3]}
4. d4 {[%clk 0:02:58.4]} 4... exd4 {[%clk 0:03:03.4]} 5. Nd5 {[%clk 0:02:58.5]}
5... Nxe4 {[%clk 0:02:41.2]} 6. Qe2 {[%clk 0:02:51.9]} 6... f5 {[%clk
0:02:41.4]} 7. Ng5 {[%clk 0:02:31]} 7... Bb4+ {[%clk 0:02:25.9]} 8. c3 {[%clk
0:02:28]} 8... dxc3 {[%clk 0:02:26.3]} 9. bxc3 {[%clk 0:02:28.1]} 9... Nd4
{[%clk 0:01:56.1]} 10. Qd3 {[%clk 0:02:08.9]} 10... Nxg5 {[%clk 0:01:34.6]} 11.
cxb4 {[%clk 0:01:59.2]} 11... Nde6 {[%clk 0:01:10.8]} 12. Qxf5 {[%clk
0:01:44.6]} 12... c6 {[%clk 0:01:08.4]} 13. Bxg5 {[%clk 0:01:39.3]} 13... Qxg5
{[%clk 0:00:59.5]} 14. Qxg5 {[%clk 0:01:38.8]} 14... Nxg5 {[%clk 0:00:59.4]} 15.
Nc7+ {[%clk 0:01:40.1]} 15... Kd8 {[%clk 0:01:00.4]} 16. Nxa8 {[%clk 0:01:40.1]}
16... b6 {[%clk 0:01:01.8]} 17. Bd3 {[%clk 0:01:37.7]} 17... Bb7 {[%clk
0:01:02.2]} 18. Nxb6 {[%clk 0:01:36.2]} 18... axb6 {[%clk 0:01:04.1]} 19. O-O
{[%clk 0:01:37.3]} 19... h5 {[%clk 0:01:01.8]} 20. h4 {[%clk 0:01:35.4]} 20...
Nf7 {[%clk 0:01:02.2]} 21. Rfe1 {[%clk 0:01:32.6]} 21... g5 {[%clk 0:00:59.6]}
22. Bg6 {[%clk 0:01:26.9]} 22... Nd6 {[%clk 0:00:48.4]} 23. Rad1 {[%clk
0:01:22.2]} 23... Kc7 {[%clk 0:00:44.2]} 24. hxg5 {[%clk 0:01:20]} 24... h4
{[%clk 0:00:44.2]} 25. Kh2 {[%clk 0:01:17]} 25... Rg8 {[%clk 0:00:42.8]} 26. Bd3
{[%clk 0:01:06.8]} 26... Rxg5 {[%clk 0:00:40.8]} 27. a3 {[%clk 0:01:01.6]} 27...
c5 {[%clk 0:00:32.6]} 28. Re7 {[%clk 0:00:59.9]} 28... Rxg2+ {[%clk 0:00:26.9]}
29. Kh3 {[%clk 0:00:57.4]} 29... Rxf2 {[%clk 0:00:20.3]} 30. bxc5 {[%clk
0:00:50.1]} 30... bxc5 {[%clk 0:00:20]} 31. Re3 {[%clk 0:00:34.6]} 31... Rf4
{[%clk 0:00:10.8]} 32. Bf1 {[%clk 0:00:29.7]} 32... c4 {[%clk 0:00:10]} 33. Rc3
{[%clk 0:00:27.6]} 33... Bf3 {[%clk 0:00:09.3]} 34. Rxd6 {[%clk 0:00:25.5]}
34... Kxd6 {[%clk 0:00:06.6]} 35. Bxc4 {[%clk 0:00:25.8]} 35... Bd5 {[%clk
0:00:04.7]} 36. Bb5 {[%clk 0:00:21.3]} 36... Rf3+ {[%clk 0:00:06.3]} 37. Rxf3
{[%clk 0:00:20.5]} 37... Bxf3 {[%clk 0:00:08.2]} 38. Kxh4 {[%clk 0:00:20.6]}
38... Bd1 {[%clk 0:00:08.8]} 39. Kg3 {[%clk 0:00:20.6]} 39... Kc7 {[%clk
0:00:09.8]} 40. Kf2 {[%clk 0:00:20.4]} 40... d6 {[%clk 0:00:11]} 41. Ke1 {[%clk
0:00:19.4]} 41... Kb6 {[%clk 0:00:10.6]} 42. Be8 {[%clk 0:00:17.1]} 42... Bb3
{[%clk 0:00:11.3]} 43. Kd2 {[%clk 0:00:17.1]} 43... Kc5 {[%clk 0:00:11.4]} 44.
Kc3 {[%clk 0:00:16.8]} 44... Bc4 {[%clk 0:00:12.6]} 45. a4 {[%clk 0:00:11.4]}
45... d5 {[%clk 0:00:13.5]} 46. Bd7 {[%clk 0:00:07.4]} 46... d4+ {[%clk
0:00:14.5]} 47. Kd2 {[%clk 0:00:07.2]} 47... Kb4 {[%clk 0:00:14.8]} 48. Bf5
{[%clk 0:00:05.8]} 48... Kxa4 {[%clk 0:00:13.8]} 49. Bg6 {[%clk 0:00:05.7]}
49... Kb4 {[%clk 0:00:14.9]} 50. Bf5 {[%clk 0:00:05.8]} 50... Kc5 {[%clk
0:00:15.8]} 51. Bg6 {[%clk 0:00:06.3]} 51... Kd6 {[%clk 0:00:17]} 52. Bh7 {[%clk
0:00:06.4]} 52... Ke5 {[%clk 0:00:18]} 53. Bg6 {[%clk 0:00:06.6]} 53... Bd5
{[%clk 0:00:19]} 54. Bh7 {[%clk 0:00:07.3]} 54... Be4 {[%clk 0:00:20]} 55. Bg8
{[%clk 0:00:07.4]} 55... Kf4 {[%clk 0:00:20.1]} 56. Bc4 {[%clk 0:00:07.7]} 56...
Ke5 {[%clk 0:00:20.1]} 57. Bb5 {[%clk 0:00:08.2]} 57... Kd6 {[%clk 0:00:21.1]}
58. Ba6 {[%clk 0:00:07.7]} 58... Kc5 {[%clk 0:00:22.2]} 59. Bf1 {[%clk
0:00:07.5]} 59... d3 {[%clk 0:00:22.4]} 60. Bxd3 {[%clk 0:00:07.8]} 1/2-1

[Event "Open Nuevo Centro. Jornada 2"]
[Site "Chess.com"]
[Date "2020.06.26"]
[Round "3"]
[White "Ainsa Jimenez, Lucas"]
[Black "Valero Martinez, Óscar"]
[Result "0-1"]
[WhiteElo "852"]
[BlackElo "865"]
[TimeControl "180+2"]
[EndTime "11:04:25 PDT"]
[Termination "Victoria de Oscar12000 por tiempo"]

1. e4 {[%clk 0:02:54.4]} 1... e5 {[%clk 0:03:00.1]} 2. Nf3 {[%clk 0:02:55.3]}
2... Nc6 {[%clk 0:03:00.3]} 3. Bc4 {[%clk 0:02:56.1]} 3... Nf6 {[%clk
0:03:00.9]} 4. Ng5 {[%clk 0:02:54.8]} 4... Qe7 {[%clk 0:02:40.3]} 5. Nc3 {[%clk
0:02:50.8]} 5... h6 {[%clk 0:02:39.8]} 6. Nf3 {[%clk 0:02:49.7]} 6... Qd8 {[%clk
0:02:33.5]} 7. O-O {[%clk 0:02:47]} 7... d6 {[%clk 0:02:31.5]} 8. d3 {[%clk
0:02:41.5]} 8... Bg4 {[%clk 0:02:28.3]} 9. h3 {[%clk 0:02:40.4]} 9... Bh5 {[%clk
0:02:28]} 10. g4 {[%clk 0:02:39.9]} 10... Bxg4 {[%clk 0:02:23.2]} 11. hxg4
{[%clk 0:02:37.8]} 11... Nxg4 {[%clk 0:02:23.2]} 12. Kg2 {[%clk 0:02:37.7]}
12... Nb4 {[%clk 0:02:14.4]} 13. Kg3 {[%clk 0:02:34.4]} 13... h5 {[%clk
0:02:07.8]} 14. Rh1 {[%clk 0:02:20.5]} 14... Be7 {[%clk 0:01:54.9]} 15. Nh2
{[%clk 0:01:48.2]} 15... Qd7 {[%clk 0:01:48.4]} 16. Nxg4 {[%clk 0:01:44.4]}
16... h4+ {[%clk 0:01:38.6]} 17. Kf3 {[%clk 0:01:29.1]} 17... d5 {[%clk
0:01:34.8]} 18. exd5 {[%clk 0:01:28]} 18... Qf5+ {[%clk 0:01:29.1]} 19. Ke3
{[%clk 0:01:15.6]} 19... Bg5+ {[%clk 0:01:25.9]} 20. Ke2 {[%clk 0:01:08.7]}
20... Qxg4+ {[%clk 0:01:22.9]} 21. Ke1 {[%clk 0:01:03]} 21... Qg2 {[%clk
0:01:16.2]} 22. Bxg5 {[%clk 0:00:48.5]} 22... Qxh1+ {[%clk 0:01:06.7]} 23. Kd2
{[%clk 0:00:40.2]} 23... Qg2 {[%clk 0:00:59.4]} 24. Be3 {[%clk 0:00:35.9]} 24...
O-O-O {[%clk 0:00:55]} 25. a3 {[%clk 0:00:19.4]} 25... Na6 {[%clk 0:00:43.1]}
26. Bxa6 {[%clk 0:00:18.8]} 26... bxa6 {[%clk 0:00:33.1]} 27. Bxa7 {[%clk
0:00:18.6]} 27... Qg5+ {[%clk 0:00:25.3]} 28. Ke1 {[%clk 0:00:17.5]} 28... Qg1+
{[%clk 0:00:21.6]} 29. Ke2 {[%clk 0:00:14.1]} 29... Qg4+ {[%clk 0:00:19.6]} 30.
Kd2 {[%clk 0:00:12]} 30... Qg5+ {[%clk 0:00:11.4]} 31. Be3 {[%clk 0:00:12.8]}
31... Qf5 {[%clk 0:00:07.9]} 32. Na4 {[%clk 0:00:10.4]} 32... a5 {[%clk
0:00:07.8]} 33. Nc5 {[%clk 0:00:08.1]} 33... e4 {[%clk 0:00:05.9]} 34. dxe4
{[%clk 0:00:07.2]} 34... Qe5 {[%clk 0:00:05.1]} 35. Kc1 {[%clk 0:00:07]} 35...
Rde8 {[%clk 0:00:03.9]} 36. Kb1 {[%clk 0:00:07.1]} 36... Rh5 {[%clk 0:00:04.7]}
37. Nb3 {[%clk 0:00:06.3]} 37... h3 {[%clk 0:00:04.1]} 38. Bd4 {[%clk
0:00:06.2]} 38... h2 {[%clk 0:00:05.2]} 39. Bxe5 {[%clk 0:00:06]} 39... h1=Q
{[%clk 0:00:05.5]} 40. Qxh1 {[%clk 0:00:06.6]} 40... Rxh1+ {[%clk 0:00:06.7]}
41. Ka2 {[%clk 0:00:08.5]} 41... Rxe5 {[%clk 0:00:06.9]} 42. Rxh1 {[%clk
0:00:08.6]} 42... g6 {[%clk 0:00:08.3]} 43. Nxa5 {[%clk 0:00:08.7]} 43... Kd7
{[%clk 0:00:09.6]} 44. Rh7 {[%clk 0:00:08.8]} 44... Rxe4 {[%clk 0:00:10.7]} 45.
b3 {[%clk 0:00:09.3]} 45... Re2 {[%clk 0:00:10.5]} 46. Kb2 {[%clk 0:00:10]}
46... Rxf2 {[%clk 0:00:11.7]} 47. Rxf7+ {[%clk 0:00:10.7]} 47... Rxf7 {[%clk
0:00:10.7]} 48. Nc4 {[%clk 0:00:11]} 48... Rf2 {[%clk 0:00:08.5]} 49. a4 {[%clk
0:00:11.1]} 49... c6 {[%clk 0:00:05.5]} 50. dxc6+ {[%clk 0:00:09.9]} 50... Kxc6
{[%clk 0:00:06.8]} 51. a5 {[%clk 0:00:10.3]} 51... Kb7 {[%clk 0:00:07.4]} 52.
Kc3 {[%clk 0:00:07.6]} 52... g5 {[%clk 0:00:08.7]} 53. Kb4 {[%clk 0:00:08]}
53... g4 {[%clk 0:00:09.9]} 54. c3 {[%clk 0:00:08.3]} 54... g3 {[%clk
0:00:11.2]} 55. Kb5 {[%clk 0:00:08.5]} 55... g2 {[%clk 0:00:12.1]} 56. a6+
{[%clk 0:00:10.4]} 56... Ka7 {[%clk 0:00:12.5]} 57. Nd6 {[%clk 0:00:10.5]} 57...
g1=Q {[%clk 0:00:12.1]} 58. Nc8+ {[%clk 0:00:11]} 58... Kb8 {[%clk 0:00:10]} 59.
Nb6 {[%clk 0:00:11.4]} 59... Rf5+ {[%clk 0:00:10.9]} 60. Kb4 {[%clk 0:00:10.5]}
60... Qg4+ {[%clk 0:00:12.1]} 61. Ka3 {[%clk 0:00:10.9]} 61... Ra5+ {[%clk
0:00:10.8]} 62. Na4 {[%clk 0:00:10.1]} 62... Ka7 {[%clk 0:00:08.6]} 63. b4
{[%clk 0:00:09]} 63... Rxa6 {[%clk 0:00:09.8]} 64. Kb3 {[%clk 0:00:08.7]} 64...
Qe6+ {[%clk 0:00:09.7]} 65. c4 {[%clk 0:00:07.8]} 65... Qe3+ {[%clk 0:00:10.7]}
66. Nc3 {[%clk 0:00:07.9]} 66... Qe6 {[%clk 0:00:08.7]} 67. Na4 {[%clk
0:00:07.2]} 67... Rc6 {[%clk 0:00:08.3]} 68. Nc5 {[%clk 0:00:06.1]} 68... Qe3+
{[%clk 0:00:05.9]} 69. Ka4 {[%clk 0:00:04.9]} 69... Qe8 {[%clk 0:00:04.3]} 70.
Kb3 {[%clk 0:00:04.6]} 70... Rh6 {[%clk 0:00:02.8]} 71. b5 {[%clk 0:00:04.4]}
71... Rh3+ {[%clk 0:00:02.9]} 0

[Event "Open Nuevo Centro. Jornada 2"]
[Site "Chess.com"]
[Date "2020.06.26"]
[Round "4"]
[White "Marín Corresa, Arturo"]
[Black "Donate Moreno, Silvia"]
[Result "1-0"]
[WhiteElo "2208"]
[BlackElo "1780"]
[TimeControl "180+2"]
[EndTime "11:07:34 PDT"]
[Termination "Victoria de Estivella por abandono"]

1. e4 {[%clk 0:03:01.9]} 1... c5 {[%clk 0:03:00.3]} 2. Nf3 {[%clk 0:03:02.1]}
2... d6 {[%clk 0:03:01]} 3. c3 {[%clk 0:03:02.4]} 3... Nf6 {[%clk 0:03:00.7]} 4.
Be2 {[%clk 0:03:03]} 4... Nxe4 {[%clk 0:03:00.7]} 5. Qa4+ {[%clk 0:03:02.8]}
5... Nc6 {[%clk 0:02:59.5]} 6. Qxe4 {[%clk 0:03:03]} 6... d5 {[%clk 0:02:59.5]}
7. Qh4 {[%clk 0:03:00]} 7... d4 {[%clk 0:02:56.6]} 8. Bb5 {[%clk 0:02:49.5]}
8... Qd5 {[%clk 0:02:51.1]} 9. O-O {[%clk 0:02:42.4]} 9... e6 {[%clk 0:02:48.7]}
10. c4 {[%clk 0:02:36.1]} 10... Qd6 {[%clk 0:02:47.7]} 11. d3 {[%clk 0:02:35.6]}
11... Be7 {[%clk 0:02:44.4]} 12. Bf4 {[%clk 0:02:19]} 12... Qd8 {[%clk
0:02:40.3]} 13. Qg3 {[%clk 0:02:17.1]} 13... Bd7 {[%clk 0:02:35.5]} 14. Nbd2
{[%clk 0:02:11.1]} 14... f6 {[%clk 0:02:31.9]} 15. Qxg7 {[%clk 0:02:02.4]} 1